bitfinex/quotes_ETHUSD_20250322
["timestamp","ask_amount","ask_price","bid_price","bid_amount"]
[1742609752041,7.3706998,1982.6,1982.5,0.47360943]
[1742609755141,8.84282618,1982.6,1982.5,0.47360943]
[1742609755342,9.59392618,1982.6,1982.5,0.47360943]
[1742609755704,5.04413,1982.5,1982.4,26.674]
[1742609755925,7.3709498,1982.5,1982.4,26.674]
[1742609756337,7.3709498,1982.5,1982.4,27.14764142]
[1742609756527,8.83475542,1982.5,1982.4,27.14764142]
[1742609756707,8.83475542,1982.5,1982.4,26.674]
[1742609757109,9.58585542,1982.5,1982.4,26.674]
[1742609759832,14.91267522,1982.5,1982.4,26.674]
[1742609760227,5.7964,1982.1,1981.8,31.365]
[1742609760419,10.09108,1982.0,1981.8,31.365]
[1742609760633,7.3722498,1982.0,1981.8,31.365]
[1742609760813,5.04543,1982.0,1981.8,31.365]
[1742609761318,12.4178198,1982.0,1981.8,31.365]
[1742609761737,7.3722498,1982.0,1981.8,31.365]
[1742609762044,12.4178198,1982.0,1981.8,31.365]
[1742609762444,12.4178098,1982.0,1981.8,31.365]
[1742609762842,5.04566,1981.9,1981.8,31.365]
[1742609763857,7.3722498,1982.0,1981.8,31.365]
[1742609764320,12.4178398,1982.0,1981.8,31.365]
[1742609764746,8.68914378,1982.0,1981.8,31.365]
[1742609764952,13.73470378,1982.0,1981.8,31.365]
[1742609765667,5.04566,1981.9,1981.8,31.365]
[1742609766648,5.04566,1981.9,1981.8,26.673]
[1742609768032,7.3724798,1981.9,1981.8,26.673]
[1742609768759,8.69746033,1981.9,1981.8,26.673]
[1742609768969,7.3724798,1981.9,1981.8,26.673]
[1742609769159,5.04566,1981.9,1981.8,26.673]
[1742609770936,7.3724798,1981.9,1981.8,26.673]
[1742609771832,5.04566,1981.9,1981.8,26.673]
[1742609776046,7.3724798,1981.9,1981.8,26.673]
[1742609776569,9.43877078,1981.9,1981.8,26.673]
[1742609776943,5.04543,1982.0,1981.8,26.673]
[1742609777266,3.1513198,1982.3,1981.8,27.3278]
[1742609777438,3.0,1982.2,1981.9,5.04551]
[1742609777738,7.37714619,1982.5,1982.1,0.6548]
[1742609777938,7.37714619,1982.5,1982.2,5.04487]
[1742609778163,7.37714619,1982.5,1982.1,0.6548]
[1742609778164,12.42143619,1982.5,1982.1,5.69987]
[1742609778334,2.3268198,1982.4,1982.1,5.69987]
[1742609779041,7.3717698,1982.2,1982.0,5.98999249]
[1742609779248,5.04495,1982.2,1982.0,5.98999249]
[1742609781268,5.80735,1982.1,1982.0,5.98999249]
[1742609781570,5.04495,1982.2,1981.9,4.693]
[1742609782070,5.04473,1982.3,1982.0,0.6548]
[1742609782670,10.08957,1982.3,1982.0,0.6548]
[1742609784244,5.04492,1982.2,1981.9,4.693]
[1742609786075,5.04492,1982.2,1981.9,9.73865]
[1742609786444,5.04492,1982.2,1981.9,4.693]
[1742609786645,5.80712,1982.2,1981.9,4.693]
[1742609786946,5.04523,1982.1,1981.9,4.693]
[1742609787372,10.09057,1982.1,1981.8,33.31779249]
[1742609787687,5.04523,1982.1,1981.8,32.66299249]
[1742609787863,5.04566,1981.9,1981.8,26.673]
[1742609788178,5.80786,1981.9,1981.8,26.673]
[1742609791757,9.68565765,1981.9,1981.8,26.673]
[1742609793356,5.04566,1981.9,1981.8,26.673]
[1742609793682,5.04503,1982.2,1981.8,31.71882]
[1742609794305,5.04515,1982.1,1981.8,31.71882]
[1742609794461,10.09046,1982.1,1981.8,26.673]
[1742609795059,5.04515,1982.1,1981.8,26.673]
[1742609795273,5.04515,1982.1,1981.8,31.71889]
[1742609795700,9.68466765,1982.3,1981.9,5.04552]
[1742609795898,16.46728442,1982.3,1981.9,5.04552]
[1742609796071,5.0449,1982.2,1981.9,5.04552]
[1742609796608,10.09,1982.2,1981.8,31.71883]
[1742609797210,5.04519,1982.1,1981.8,31.71883]
[1742609797799,5.0449,1982.2,1981.8,31.71883]
[1742609797971,10.09,1982.2,1981.8,31.71883]
[1742609798198,5.04516,1982.1,1981.8,31.71883]
[1742609799293,5.04516,1982.1,1981.8,37.70882249]
[1742609800106,10.09049,1982.1,1981.8,32.66299249]
[1742609800635,5.04516,1982.1,1981.8,32.66299249]
[1742609802251,10.09053,1982.1,1981.8,32.66299249]
[1742609803237,5.04516,1982.1,1981.8,32.66299249]
[1742609803536,10.09046,1982.1,1981.8,32.66299249]
[1742609804105,5.04516,1982.1,1981.8,32.66299249]
[1742609804309,5.04516,1982.1,1981.8,37.70889249]
[1742609810850,5.04495,1982.2,1981.8,37.70881249]
[1742609811023,5.04495,1982.2,1981.9,0.6548]
[1742609811226,5.04495,1982.2,1981.9,5.3478]
[1742609811551,5.04495,1982.2,1981.9,10.39331]
[1742609811908,5.04495,1982.2,1981.9,5.3478]
[1742609812108,10.09001,1982.2,1981.9,5.3478]
[1742609813743,5.04495,1982.2,1981.9,5.3478]
[1742609814035,10.08999,1982.2,1981.9,5.3478]
[1742609815714,5.04495,1982.2,1981.9,5.3478]
[1742609816213,5.04495,1982.2,1981.9,32.0258]
[1742609816638,10.09001,1982.2,1981.9,32.0258]
[1742609816839,5.04495,1982.2,1981.9,32.0258]
[1742609818152,10.09,1982.2,1981.9,32.0258]
[1742609818944,5.04495,1982.2,1981.9,32.0258]
[1742609820646,5.04495,1982.2,1981.9,37.07143]
[1742609821754,5.04495,1982.2,1981.9,32.0258]
[1742609822244,10.09002,1982.2,1981.9,32.0258]
[1742609822555,11.40790243,1982.2,1981.9,32.0258]
[1742609823349,6.36283243,1982.2,1981.9,32.0258]
[1742609823649,5.04495,1982.2,1981.9,32.0258]
[1742609824944,5.04495,1982.2,1981.9,37.07144]
[1742609825150,5.04495,1982.2,1981.9,32.0258]
[1742609826156,5.81749,1982.5,1982.1,8.02631432]
[1742609826337,5.04429,1982.5,1982.1,13.07132432]
[1742609826645,5.04429,1982.5,1982.1,13.07134432]
[1742609826820,3.09980432,1982.7,1982.3,5.04457]
[1742609826821,13.18742432,1982.7,1982.3,5.04457]
[1742609827229,5.04376,1982.7,1982.4,0.6548]
[1742609827624,3.7732,1982.9,1982.6,5.04386]
[1742609827625,0.7732,1982.9,1982.6,5.04386]
[1742609827823,5.043,1983.0,1982.6,5.04386]
[1742609828049,5.04244,1983.2,1982.8,5.04336]
[1742609828257,5.04244,1983.2,1982.8,5.69805]
[1742609828819,10.08495,1983.2,1982.8,5.69805]
[1742609829021,5.04244,1983.2,1982.8,5.69805]
[1742609830426,5.04262,1983.1,1982.8,5.69805]
[1742609831558,5.04262,1983.1,1982.8,6.64479249]
[1742609835049,5.04311,1982.9,1982.8,5.98999249]
[1742609836030,6.51665668,1982.9,1982.8,5.98999249]
[1742609836663,5.81589,1983.1,1982.8,5.98999249]
[1742609836864,5.0429,1983.0,1982.8,5.98999249]
[1742609837435,10.08595,1983.0,1982.7,32.66799249]
[1742609838365,5.04332,1982.9,1982.7,32.66799249]
[1742609838569,5.04337,1982.8,1982.7,32.66799249]
[1742609839268,6.825239,1982.8,1982.7,32.66799249]
[1742609839478,10.70137583,1982.8,1982.7,32.66799249]
[1742609840260,13.70137583,1982.8,1982.7,32.66799249]
[1742609843373,13.70137583,1982.8,1982.7,26.678]
[1742609844072,13.75017583,1982.8,1982.7,26.678]
[1742609846486,5.04451,1982.4,1982.1,32.0148]
[1742609847672,5.04388,1982.6,1982.1,32.0148]
[1742609847887,8.04372,1982.7,1982.4,0.6548]
[1742609848796,8.04372,1982.7,1982.4,5.69918]
[1742609848951,13.08754,1982.7,1982.4,0.6548]
[1742609849151,8.04372,1982.7,1982.4,0.6548]
[1742609850500,3.0,1982.7,1982.4,0.6548]
[1742609850649,3.0,1982.7,1982.4,6.64479249]
[1742609850841,3.0,1982.7,1982.4,11.68905249]
[1742609851679,8.04377,1982.7,1982.4,6.64479249]
[1742609853252,8.04377,1982.7,1982.4,33.31479249]
[1742609853771,5.044,1982.6,1982.4,32.65999249]
[1742609854089,5.04413,1982.5,1982.4,32.65999249]
[1742609855296,5.04413,1982.5,1982.4,26.67]
[1742609859872,5.04398,1982.6,1982.4,26.67]
[1742609860190,5.04388,1982.6,1982.4,26.67]
[1742609862716,8.86564,1982.7,1982.4,26.67]
[1742609862918,8.04364,1982.7,1982.3,10.3903]
[1742609863505,8.04364,1982.7,1982.3,15.43481]
[1742609863712,8.04319,1982.9,1982.5,5.04399]
[1742609863920,13.96207683,1983.0,1982.6,5.69862]
[1742609864217,8.91899683,1983.0,1982.6,10.74228]
[1742609864385,8.91899683,1983.0,1982.6,10.74227]
[1742609864585,5.04286,1983.0,1982.6,10.74227]
[1742609864779,5.04265,1983.1,1982.7,5.04341]
[1742609864987,5.04265,1983.1,1982.7,9.73441]
[1742609865188,5.04295,1983.0,1982.7,4.691]
[1742609866082,10.83947,1983.0,1982.7,4.691]
[1742609866482,5.79645,1983.0,1982.7,4.691]
[1742609866683,5.04295,1983.0,1982.7,9.7346]
[1742609866911,5.04269,1983.1,1982.7,9.7346]
[1742609867092,5.04269,1983.1,1982.7,14.77811]
[1742609867287,5.04269,1983.1,1982.8,5.04335]
[1742609867487,5.04249,1983.2,1982.9,0.6548]
[1742609867699,13.08501,1983.2,1982.9,0.6548]
[1742609867899,8.04249,1983.2,1982.9,0.6548]
[1742609868117,8.04249,1983.2,1982.9,5.69791]
[1742609868818,13.08499,1983.2,1982.9,0.6548]
[1742609869037,8.04249,1983.2,1982.9,0.6548]
[1742609870317,3.0,1983.2,1982.9,5.69784]
[1742609870887,8.04239,1983.2,1982.9,5.69784]
[1742609871520,8.04239,1983.2,1982.9,0.6548]
[1742609872225,13.08489,1983.2,1982.9,0.6548]
[1742609872426,8.04239,1983.2,1982.9,0.6548]
[1742609873305,8.04239,1983.2,1982.9,27.3228]
[1742609875128,13.0849,1983.2,1982.9,27.3228]
[1742609875531,8.04239,1983.2,1982.9,27.3228]
[1742609879308,3.0,1983.2,1982.9,32.3659]
[1742609879542,8.04235,1983.2,1982.9,32.3659]
[1742609880050,8.04235,1983.2,1982.9,27.3228]
[1742609881172,5.922719,1983.4,1983.0,5.04262]
[1742609881471,5.04212,1983.3,1982.9,32.36582]
[1742609881673,5.04212,1983.3,1982.9,37.40881]
[1742609881862,5.04212,1983.3,1982.9,32.36579]
[1742609882243,5.169219,1983.4,1982.9,32.36579]
[1742609882445,5.169219,1983.4,1983.0,5.04276]
[1742609882769,5.169219,1983.4,1983.0,5.04272]
[1742609883357,5.169219,1983.4,1982.9,32.36582]
[1742609883550,5.0421,1983.3,1982.9,32.36582]
[1742609884152,10.08436,1983.3,1982.9,32.36582]
[1742609884370,10.08435,1983.3,1982.9,32.36582]
[1742609884578,5.0421,1983.3,1982.9,27.3228]
[1742609884879,5.04237,1983.2,1982.9,27.3228]
[1742609887998,5.04237,1983.2,1982.9,26.668]
[1742609888297,5.04262,1983.1,1982.9,31.358]
[1742609888666,0.7672,1983.2,1982.9,36.40111]
[1742609889197,14.72772683,1983.3,1982.9,36.40111]
[1742609889497,14.72773683,1983.3,1982.9,36.40111]
[1742609889646,5.04236,1983.2,1982.9,31.358]
[1742609894925,10.08494,1983.2,1982.9,31.358]
[1742609895227,6.49222004,1983.2,1982.9,31.358]
[1742609896498,11.53472004,1983.2,1982.9,31.358]
[1742609897021,10.08486,1983.2,1982.9,31.358]
[1742609898098,5.04236,1983.2,1982.9,31.358]
[1742609899739,5.04236,1983.2,1982.9,36.4011]
[1742609904236,5.04236,1983.2,1982.9,37.0559]
[1742609904433,8.91826683,1983.3,1982.9,42.09889]
[1742609904625,5.0421,1983.3,1983.0,5.04263]
[1742609904932,5.04212,1983.3,1983.0,5.04263]
[1742609905726,10.08438,1983.3,1982.9,42.0989]
[1742609905908,5.04212,1983.3,1982.9,42.0989]
[1742609907537,5.04249,1983.2,1982.9,32.0128]
[1742609907710,10.83829,1983.2,1982.9,31.358]
[1742609908738,8.91877683,1983.1,1982.9,26.668]
[1742609908951,5.79606,1983.0,1982.9,26.668]
[1742609912943,5.04383,1982.7,1982.5,4.689]
[1742609913152,13.96382683,1982.7,1982.5,4.689]
[1742609913444,5.04388,1982.6,1982.5,4.689]
[1742609913646,9.67321683,1982.6,1982.4,5.98999249]
[1742609914233,14.71726683,1982.6,1982.4,5.98999249]
[1742609915247,9.67321683,1982.6,1982.4,5.98999249]
[1742609915645,14.71724683,1982.6,1982.4,5.98999249]
[1742609916145,9.67321683,1982.6,1982.4,5.98999249]
[1742609916318,5.79708,1982.6,1982.4,5.98999249]
[1742609916652,3.87613683,1982.5,1982.3,26.662]
[1742609916949,13.96481683,1982.5,1982.3,26.662]
[1742609917125,8.92047683,1982.5,1982.3,26.662]
[1742609917341,5.04434,1982.5,1982.3,26.662]
[1742609919768,10.08863,1982.5,1982.3,26.662]
[1742609919930,5.04439,1982.4,1982.3,26.662]
[1742609922881,5.04429,1982.5,1982.3,26.662]
[1742609923546,10.08859,1982.5,1982.3,26.662]
[1742609926680,5.04439,1982.4,1982.3,26.662]
[1742609928047,5.04429,1982.5,1982.3,26.662]
[1742609931179,10.08861,1982.5,1982.3,26.662]
[1742609931381,5.04429,1982.5,1982.3,26.662]
[1742609931680,5.04429,1982.5,1982.2,4.69]
[1742609931879,5.04429,1982.5,1982.2,9.73489]
[1742609932282,6.83972858,1982.8,1982.4,5.04432]
[1742609932453,1.00280858,1982.8,1982.5,5.04402]
[1742609932654,8.91930683,1982.9,1982.5,5.04402]
[1742609933066,8.91930683,1982.9,1982.6,5.69862]
[1742609933272,7.3682756,1982.9,1982.6,5.69862]
[1742609933500,7.3682756,1982.9,1982.6,0.6548]
[1742609933501,12.4115356,1982.9,1982.6,0.6548]
[1742609933700,12.4115356,1982.9,1982.4,5.04433]
[1742609933701,12.4121456,1982.8,1982.4,5.69908]
[1742609933902,2.3251056,1982.7,1982.4,5.69904]
[1742609934404,7.3688156,1982.7,1982.4,5.69904]
[1742609934703,7.3692756,1982.5,1982.2,10.38946]
[1742609934874,7.3692756,1982.5,1982.2,9.73466]
[1742609935070,5.04417,1982.5,1982.2,9.73466]
[1742609935399,10.08851,1982.5,1982.2,4.69]
[1742609935603,5.04417,1982.5,1982.2,4.69]
[1742609936403,5.04417,1982.5,1982.2,9.73487]
[1742609937608,10.08849,1982.5,1982.2,4.69]
[1742609937808,5.0444,1982.4,1982.2,4.69]
[1742609938686,5.0444,1982.4,1982.1,42.39495249]
[1742609939183,5.04417,1982.5,1982.1,47.43996249]
[1742609939372,5.04417,1982.5,1982.1,42.39495249]
[1742609940222,3.87668766,1982.2,1982.1,26.67]
[1742609940526,8.92157766,1982.2,1982.1,26.67]
[1742609940739,9.71497766,1982.2,1982.1,26.67]
[1742609942190,0.7934,1982.2,1982.1,26.67]
[1742609942396,5.04489,1982.3,1982.1,26.67]
[1742609942397,10.08966,1982.3,1982.1,26.67]
[1742609943611,5.04482,1982.3,1982.1,26.67]
[1742609943818,5.04474,1982.3,1982.1,26.67]
[1742609945519,5.0444,1982.4,1982.1,26.67]
[1742609946680,10.08896,1982.4,1982.1,26.67]
[1742609948437,5.04468,1982.3,1982.1,26.67]
[1742609950244,9.42604566,1982.2,1982.1,26.67]
[1742609950602,5.549358,1982.2,1982.1,26.67]
[1742609951224,5.04489,1982.2,1982.1,26.67]
[1742609955839,5.04544,1982.0,1981.8,37.35499249]
[1742609956302,5.04525,1982.1,1981.8,37.35499249]
[1742609956739,5.04541,1982.0,1981.8,37.35499249]
[1742609958449,5.04541,1982.0,1981.8,32.66499249]
[1742609958648,9.67639766,1982.0,1981.8,32.66499249]
[1742609958945,5.04566,1981.9,1981.8,32.66499249]
[1742609960842,5.04566,1981.9,1981.8,26.675]
[1742609962059,5.04566,1981.9,1981.8,27.3298]
[1742609962358,5.04566,1981.9,1981.8,26.675]
[1742609965054,5.04566,1981.9,1981.8,27.3298]
[1742609965434,5.04541,1982.0,1981.8,27.3298]
[1742609966061,10.09097,1982.0,1981.8,27.3298]
[1742609966384,5.04566,1981.9,1981.8,26.675]
[1742609972028,6.841467,1981.9,1981.8,26.675]
[1742609974562,5.04566,1981.9,1981.8,26.675]
[1742609975052,10.09151,1981.9,1981.6,0.6548]
[1742609975430,5.04566,1981.9,1981.6,5.70122]
[1742609975629,10.09148,1981.9,1981.6,5.70122]
[1742609975825,5.04566,1981.9,1981.6,5.70122]
[1742609977441,10.09096,1982.0,1981.6,10.74746]
[1742609977668,5.04545,1982.0,1981.7,5.04616]
[1742609978959,10.09101,1982.0,1981.6,5.70104]
[1742609980863,5.04545,1982.0,1981.6,10.7473]
[1742609981264,10.09103,1982.0,1981.6,10.7473]
[1742609981454,10.09103,1982.0,1981.6,5.70104]
[1742609981765,5.0457,1981.9,1981.6,0.6548]
[1742609981940,5.85612,1981.8,1981.5,42.40556249]
[1742609984232,0.8101,1981.8,1981.5,47.45212249]
[1742609984435,10.09154,1981.9,1981.5,43.06035249]
[1742609986378,5.04595,1981.8,1981.5,43.06035249]
[1742609986679,5.04595,1981.8,1981.5,42.40555249]
[1742609986876,5.0462,1981.7,1981.5,32.66799249]
[1742609987883,5.04642,1981.6,1981.5,32.66799249]
[1742609988186,5.8563,1981.7,1981.5,26.678]
[1742609988367,0.8101,1981.7,1981.5,26.678]
[1742609988560,5.85572,1982.0,1981.5,26.678]
[1742609988762,5.04577,1981.9,1981.6,5.04642]
[1742609991284,10.09159,1981.9,1981.5,32.37938]
[1742609991784,5.04577,1981.9,1981.5,37.4259]
[1742609992682,5.04577,1981.9,1981.6,5.04642]
[1742609993684,5.85555,1982.0,1981.6,10.09265]
[1742609993983,10.90113,1982.0,1981.6,5.04623]
[1742609994585,5.04568,1981.9,1981.6,5.04623]
[1742609996500,10.0915,1981.9,1981.5,32.37938]
[1742609997085,10.0915,1981.9,1981.5,37.42591]
[1742609998192,5.04568,1981.9,1981.5,37.42591]
[1742609998867,5.04568,1981.9,1981.6,26.679]
[1742610000595,5.04593,1981.8,1981.6,26.679]
[1742610002297,10.09202,1981.8,1981.6,26.679]
[1742610002486,5.85747,1981.7,1981.6,26.679]
[1742610008500,5.04653,1981.6,1981.3,4.69]
[1742610009988,10.09313,1981.6,1981.3,4.69]
[1742610010597,5.04673,1981.5,1981.3,4.69]
[1742610010801,5.04703,1981.4,1981.2,26.68]
[1742610011101,5.04703,1981.4,1981.2,31.371]
[1742610011998,10.09356,1981.5,1981.2,31.371]
[1742610012164,11.33573422,1981.5,1981.2,31.371]
[1742610013805,6.28890422,1981.5,1981.2,31.371]
[1742610015373,5.04673,1981.5,1981.2,31.371]
[1742610016207,10.09357,1981.5,1981.2,31.371]
[1742610016801,5.04697,1981.4,1981.2,31.371]
[1742610019288,5.79877,1981.4,1981.2,26.68]
[1742610019598,5.04719,1981.3,1981.2,26.68]
[1742610022179,10.84588,1981.4,1981.2,26.68]
[1742610023995,5.79877,1981.4,1981.2,26.68]
[1742610024615,10.84589,1981.4,1981.2,26.68]
[1742610025190,10.84593,1981.4,1981.2,26.68]
[1742610025715,5.79877,1981.4,1981.2,26.68]
[1742610026396,5.04719,1981.3,1981.2,26.68]
[1742610027817,10.81447099,1981.3,1981.1,5.98999249]
[1742610028218,5.04744,1981.2,1981.1,5.98999249]
[1742610028388,5.04744,1981.2,1981.0,26.685]
[1742610029414,5.76717099,1981.3,1981.0,26.685]
[1742610029621,5.76717099,1981.3,1981.0,31.73286]
[1742610029921,10.81451099,1981.3,1981.0,31.73286]
[1742610030503,5.76717099,1981.3,1981.0,26.685]
[1742610030707,10.81453099,1981.3,1981.0,26.685]
[1742610031525,5.04748,1981.2,1981.0,26.685]
[1742610032420,10.81446099,1981.3,1981.0,26.685]
[1742610034728,5.04744,1981.2,1981.0,26.685]
[1742610035235,5.0472,1981.3,1981.0,34.06127247]
[1742610035530,5.0472,1981.3,1981.0,31.73287]
[1742610036627,5.0472,1981.3,1981.0,26.685]
[1742610036832,5.04745,1981.2,1981.0,26.685]
[1742610043040,5.04745,1981.2,1981.0,29.01340247]
[1742610043535,5.04745,1981.2,1981.0,26.685]
[1742610044539,5.0472,1981.3,1981.0,26.685]
[1742610044853,5.0472,1981.3,1981.0,29.01340247]
[1742610045244,10.09453,1981.3,1981.0,29.01340247]
[1742610045545,5.04757,1981.2,1981.0,26.685]
[1742610049357,5.8258,1981.4,1981.0,34.06127247]
[1742610049570,10.8729,1981.4,1981.0,34.06124247]
[1742610049863,10.8729,1981.4,1981.1,5.04766]
[1742610050017,5.04642,1981.6,1981.3,7.37559247]
[1742610050220,5.04642,1981.6,1981.3,12.42267247]
[1742610050422,5.04642,1981.6,1981.3,7.37548247]
[1742610050623,5.04642,1981.6,1981.3,12.42253247]
[1742610050863,5.04642,1981.6,1981.3,17.11353247]
[1742610051224,5.04655,1981.6,1981.3,9.73805]
[1742610052449,10.09316,1981.6,1981.3,4.691]
[1742610054453,5.0467,1981.5,1981.3,4.691]
[1742610054653,10.09354,1981.5,1981.3,4.691]
[1742610057156,5.0467,1981.5,1981.3,4.691]
[1742610057350,5.04646,1981.6,1981.3,12.06649247]
[1742610059838,5.04646,1981.6,1981.3,17.11355247]
[1742610060161,5.04675,1981.5,1981.3,4.691]
[1742610060463,6.854469,1981.5,1981.3,4.691]
[1742610060959,5.04744,1981.2,1981.1,5.98999249]
[1742610061170,5.0477,1981.1,1981.0,26.685]
[1742610061377,5.04744,1981.2,1981.0,26.685]
[1742610063042,5.0469,1981.5,1981.1,2.98320247]
[1742610063378,5.0469,1981.5,1981.1,5.70241]
[1742610063379,10.09376,1981.5,1981.1,5.70241]
[1742610064478,5.04698,1981.4,1981.1,5.70241]
[1742610064683,5.04727,1981.3,1981.0,35.61325855]
[1742610064878,10.09461,1981.3,1981.0,26.685]
[1742610065380,5.04745,1981.2,1981.0,26.685]
[1742610066059,5.04727,1981.3,1981.0,26.685]
[1742610066267,10.09461,1981.3,1981.0,26.685]
[1742610067078,5.04746,1981.2,1981.0,26.685]
[1742610069080,5.04727,1981.3,1981.0,26.685]
[1742610069284,10.09462,1981.3,1981.0,26.685]
[1742610070084,5.04747,1981.2,1981.0,26.685]
[1742610071794,5.04727,1981.3,1981.0,26.685]
[1742610071968,5.84538,1981.4,1981.0,36.78048]
[1742610072163,5.04698,1981.4,1981.1,0.47230684]
[1742610073300,10.09364,1981.5,1981.2,0.47230684]
[1742610073883,5.04675,1981.5,1981.2,5.04736]
[1742610074590,10.09358,1981.5,1981.2,5.04736]
[1742610074754,10.09358,1981.5,1981.1,10.75006]
[1742610074956,5.04675,1981.5,1981.1,10.74994]
[1742610075567,10.09366,1981.5,1981.1,5.70235]
[1742610075753,5.04675,1981.5,1981.1,10.74994]
[1742610076066,10.0936,1981.5,1981.1,5.70235]
[1742610076255,5.04675,1981.5,1981.2,0.47230517]
[1742610076474,10.09358,1981.5,1981.2,0.47230517]
[1742610076678,5.04675,1981.5,1981.2,0.47230517]
[1742610076873,0.8267,1981.6,1981.2,0.47230517]
[1742610077059,5.0465,1981.6,1981.3,5.04715]
[1742610077881,5.0465,1981.6,1981.4,0.47230517]
[1742610078788,10.09312,1981.6,1981.4,0.47230517]
[1742610078980,5.0465,1981.6,1981.4,0.47230517]
[1742610079184,5.87338,1981.5,1981.4,0.47230517]
[1742610079562,5.04697,1981.4,1981.1,5.04769]
[1742610080770,5.04697,1981.4,1981.2,0.47237669]
[1742610081682,10.09412,1981.4,1981.2,0.47237669]
[1742610082067,5.04719,1981.3,1981.2,0.47237669]
[1742610085192,5.04697,1981.4,1981.2,0.47237669]
[1742610086696,5.04697,1981.4,1981.3,0.47237669]
[1742610091770,10.09409,1981.4,1981.0,40.05133113]
[1742610093206,10.09409,1981.4,1981.1,0.47254773]
[1742610094099,5.04723,1981.3,1981.1,0.47254773]
[1742610094316,5.04744,1981.2,1981.1,0.47254773]
[1742610095495,5.04723,1981.3,1981.1,0.47254773]
[1742610096102,10.09456,1981.3,1981.1,0.47254773]
[1742610096610,10.09456,1981.3,1981.0,32.67499249]
[1742610097605,10.84626,1981.3,1981.0,32.67499249]
[1742610098506,5.04746,1981.2,1981.0,26.685]
[1742610098817,5.04746,1981.2,1981.1,0.47185149]
[1742610103184,5.79916,1981.2,1981.1,0.47185149]
[1742610107430,10.84684,1981.2,1980.9,26.688]
[1742610107725,5.04771,1981.1,1980.9,26.688]
[1742610108621,5.04771,1981.1,1981.0,0.47170154]
[1742610120638,9.21142564,1981.1,1981.0,0.47170154]
[1742610122011,6.882897,1981.1,1980.9,26.688]
[1742610122252,5.04798,1981.0,1980.7,8.03192864]
[1742610122454,10.09609,1981.0,1980.7,8.03192864]
[1742610122736,5.04798,1981.0,1980.7,8.03192864]
[1742610123747,10.0961,1981.0,1980.7,8.03192864]
[1742610124136,5.04771,1981.1,1980.8,2.32852864]
[1742610124517,5.04771,1981.1,1980.7,13.08054864]
[1742610124850,5.04771,1981.1,1980.8,5.04845]
[1742610127955,10.09555,1981.1,1980.8,5.04845]
[1742610128152,5.84312,1981.0,1980.6,37.72783249]
[1742610128345,5.04824,1980.9,1980.6,40.05636113]
[1742610128742,10.89122,1981.0,1980.6,45.10512113]
[1742610129658,10.09612,1981.0,1980.6,45.10512113]
[1742610129859,5.04802,1981.0,1980.7,7.37721864]
[1742610130056,10.09557,1981.1,1980.8,0.6548]
[1742610130358,5.04771,1981.1,1980.8,0.6548]
[1742610130662,5.04795,1981.0,1980.8,0.6548]
[1742610132635,5.04771,1981.1,1980.8,5.70325]
[1742610132823,3.0,1981.3,1980.9,7.37666864]
[1742610133027,5.04755,1981.2,1980.9,7.37666864]
[1742610133228,5.04755,1981.2,1980.9,5.04814]
[1742610133749,5.04755,1981.2,1980.9,13.36666113]
[1742610134653,10.09514,1981.2,1980.9,11.03813249]
[1742610134860,5.04755,1981.2,1980.9,13.36666113]
[1742610136269,10.09514,1981.2,1980.9,13.36666113]
[1742610136473,5.04772,1981.1,1980.9,5.98999249]
[1742610137673,5.04754,1981.2,1980.9,5.98999249]
[1742610138269,10.09519,1981.2,1980.9,5.98999249]
[1742610138548,10.09519,1981.2,1980.9,8.31852113]
[1742610139178,5.04776,1981.1,1980.9,8.31852113]
[1742610139473,10.09564,1981.1,1980.9,8.31852113]
[1742610139672,10.09564,1981.1,1980.9,5.98999249]
[1742610139873,5.04795,1981.0,1980.9,5.98999249]
[1742610140077,6.852621,1981.0,1980.9,5.98999249]
[1742610140375,9.18114964,1981.0,1980.9,5.98999249]
[1742610140555,6.852621,1981.0,1980.9,5.98999249]
[1742610143265,6.852621,1981.0,1980.7,26.691]
[1742610143266,5.04846,1980.8,1980.7,26.691]
[1742610146184,5.04878,1980.7,1980.5,8.31852113]
[1742610149180,12.18114964,1981.0,1980.4,32.0378]
[1742610149181,5.04922,1980.5,1980.4,31.383]
[1742610149388,10.09833,1980.6,1980.4,31.383]
[1742610149550,10.09833,1980.6,1980.4,33.71152864]
[1742610150287,5.04916,1980.6,1980.4,33.71152864]
[1742610151280,10.09828,1980.6,1980.4,33.71152864]
[1742610151487,5.04912,1980.6,1980.4,33.71152864]
[1742610152479,10.09761,1980.7,1980.5,2.32852864]
[1742610152682,5.04897,1980.6,1980.5,2.32852864]
[1742610152986,5.04897,1980.6,1980.4,33.71152864]
[1742610153395,3.7606,1981.0,1980.5,5.04922]
[1742610153595,8.80867,1981.0,1980.7,2.32852864]
[1742610153890,8.04807,1981.0,1980.7,2.32852864]
[1742610154091,13.09618,1981.0,1980.6,8.03216864]
[1742610154271,8.04807,1981.0,1980.6,8.03216864]
[1742610154596,5.04823,1980.9,1980.6,8.03216864]
[1742610155156,5.04823,1980.9,1980.6,2.98332864]
[1742610155362,3.0,1981.0,1980.7,7.37707864]
[1742610155562,3.0,1981.0,1980.8,2.32852864]
[1742610156061,3.0,1981.0,1980.7,7.37707864]
[1742610157262,3.0,1981.0,1980.8,2.32852864]
[1742610157467,5.04785,1981.1,1980.8,2.32852864]
[1742610158897,5.04785,1981.1,1980.8,7.37696864]
[1742610159198,10.8557,1981.2,1980.8,7.37696864]
[1742610159597,5.0477,1981.1,1980.8,7.37696864]